bitfinex-derivatives/quotes_BTCF0:USTF0_20210404
["timestamp","ask_amount","ask_price","bid_price","bid_amount"]
[1617500193277,0.4625,56839.0,56838.0,2.72063766]
[1617500193480,0.4625,56839.0,56838.0,3.72063766]
[1617500193678,0.4625,56839.0,56838.0,2.72063766]
[1617500193878,0.45227683,56859.0,56838.0,2.72063766]
[1617500194078,0.45227683,56859.0,56838.0,3.72063766]
[1617500194280,0.45225283,56860.0,56855.0,1.0]
[1617500194479,0.45225283,56860.0,56855.0,1.16697]
[1617500194679,0.45223941,56865.0,56856.0,0.44887925]
[1617500195081,0.45223941,56865.0,56857.0,0.44892792]
[1617500195480,0.45220798,56867.0,56864.0,0.10725655]
[1617500197080,0.45220798,56867.0,56864.0,1.10725655]
[1617500197280,0.45218475,56869.0,56866.0,1.0]
[1617500197681,0.36997652,56870.0,56866.0,1.94866571]
[1617500197879,0.35387652,56870.0,56866.0,1.94866571]
[1617500198080,0.34897652,56870.0,56866.0,1.94866571]
[1617500198280,0.4918,56872.0,56869.0,1.44857047]
[1617500198479,0.4918,56872.0,56869.0,1.58398047]
[1617500198684,0.4918,56872.0,56871.0,1.44823073]
[1617500198881,0.4918,56872.0,56871.0,2.94823073]
[1617500199280,2.6366,56877.0,56871.0,2.94823073]
[1617500199480,2.6366,56877.0,56876.0,0.10725655]
[1617500199682,2.6366,56877.0,56876.0,2.60725655]
[1617500200281,2.6366,56877.0,56876.0,3.14770517]
[1617500202084,2.6366,56877.0,56876.0,2.60725655]
[1617500203583,2.6099,56877.0,56876.0,2.60725655]
[1617500204283,2.6099,56877.0,56876.0,2.66025655]
[1617500204484,2.6099,56877.0,56876.0,2.60725655]
[1617500206685,2.5922,56877.0,56876.0,2.60725655]
[1617500209589,2.5922,56877.0,56876.0,1.60725655]
[1617500209788,2.5922,56877.0,56876.0,2.60725655]
[1617500211394,2.5922,56877.0,56876.0,1.60725655]
[1617500211590,2.5922,56877.0,56876.0,1.65995655]
[1617500211791,2.5922,56877.0,56876.0,2.65995655]
[1617500212693,2.5659,56877.0,56876.0,2.65995655]
[1617500212893,2.5394,56877.0,56876.0,2.65995655]
[1617500213093,2.5167,56877.0,56876.0,2.65995655]
[1617500213299,2.4906,56877.0,56876.0,2.65995655]
[1617500213695,2.48956949,56877.0,56876.0,7.65995655]
[1617500214094,2.39038692,56877.0,56876.0,7.65995655]
[1617500214295,2.35523949,56877.0,56876.0,7.65995655]
[1617500214895,2.31223949,56877.0,56876.0,1.65995655]
[1617500215298,2.31223949,56877.0,56876.0,7.65995655]
[1617500215496,2.31223949,56877.0,56876.0,8.16021228]
[1617500215696,2.28353949,56877.0,56876.0,8.16021228]
[1617500216097,2.17963949,56877.0,56876.0,8.16021228]
[1617500217500,2.17073949,56877.0,56876.0,8.16021228]
[1617500219603,0.12516,56892.0,56876.0,3.10751228]
[1617500220005,0.12516,56892.0,56884.0,3.5697]
[1617500220406,0.12516,56892.0,56891.0,1.0]
[1617500220606,3.4523,56902.0,56891.0,1.0]
[1617500220806,3.4523,56902.0,56884.0,3.5697]
[1617500220807,3.4523,56902.0,56892.0,1.0]
[1617500221007,3.653,56914.0,56894.0,2.7574]
[1617500221607,1.5,56913.0,56906.0,0.10725655]
[1617500221809,1.0,56907.0,56906.0,0.10725655]
[1617500222007,0.14028,56907.0,56906.0,0.10725655]
[1617500223207,0.50661256,56907.0,56906.0,0.10725655]
[1617500223608,0.61386911,56907.0,56906.0,0.10725655]
[1617500224210,0.36633256,56907.0,56906.0,2.76905655]
[1617500224411,1.0,56918.0,56906.0,2.76905655]
[1617500224412,0.36618532,56911.0,56906.0,2.76905655]
[1617500224911,0.36616824,56912.0,56906.0,2.76905655]
[1617500225312,0.36586793,56914.0,56906.0,2.76905655]
[1617500225511,0.36586793,56914.0,56913.0,0.10725655]
[1617500225711,0.55440589,56918.0,56913.0,0.10725655]
[1617500226113,0.43630344,56914.0,56913.0,0.10725655]
[1617500226513,0.36587095,56914.0,56913.0,0.10725655]
[1617500226915,0.4362973,56914.0,56913.0,0.10725655]
[1617500227514,0.36587095,56914.0,56913.0,0.10725655]
[1617500228014,0.4362647,56914.0,56913.0,0.10725655]
[1617500228215,0.36587095,56914.0,56913.0,0.10725655]
[1617500228815,0.43626185,56914.0,56913.0,0.10725655]
[1617500229214,0.81327732,56914.0,56913.0,0.10725655]
[1617500229614,0.81327732,56914.0,56913.0,3.08145655]
[1617500230017,0.81327732,56914.0,56913.0,4.08145655]
[1617500230217,0.36605469,56917.0,56913.0,4.08145655]
[1617500230417,0.36601861,56921.0,56913.0,3.24515655]
[1617500230617,0.36601861,56921.0,56913.0,4.24515655]
[1617500231020,0.36600805,56922.0,56913.0,4.24515655]
[1617500231319,0.43667779,56923.0,56913.0,4.24515655]
[1617500231518,0.43667779,56923.0,56922.0,0.10725655]
[1617500231719,0.07066991,56923.0,56922.0,0.10725655]
[1617500232320,0.4733,56924.0,56922.0,0.10725655]
[1617500233520,0.4733,56924.0,56922.0,1.10725655]
[1617500234122,0.4733,56924.0,56922.0,0.10725655]
[1617500234525,0.4733,56924.0,56923.0,1.0]
[1617500234924,0.36594288,56932.0,56923.0,1.0]
[1617500235122,0.36594288,56932.0,56931.0,3.2566]
[1617500235322,0.10547731,56941.0,56931.0,3.40505]
[1617500235323,0.36592253,56939.0,56931.0,3.40505]
[1617500235521,0.36592253,56939.0,56931.0,4.40505]
[1617500235723,0.10547731,56941.0,56938.0,1.10725655]
[1617500236124,0.10547731,56941.0,56939.0,1.0]
[1617500236323,0.10547731,56941.0,56938.0,0.10725655]
[1617500237624,0.10547731,56941.0,56940.0,3.4978]
[1617500238425,0.47016984,56941.0,56940.0,3.49677001]
[1617500239225,0.5319702,56941.0,56940.0,3.49677001]
[1617500240029,0.10547731,56941.0,56940.0,3.49677001]
[1617500242938,0.10547731,56941.0,56940.0,4.49677001]
[1617500244334,0.10547731,56941.0,56940.0,3.49677001]
[1617500244735,0.10547731,56941.0,56940.0,4.49677001]
[1617500246938,0.36581027,56948.0,56940.0,4.49677001]
[1617500247338,0.36581027,56948.0,56941.0,1.0]
[1617500247737,0.50886958,56952.0,56947.0,0.10725655]
[1617500248138,0.36538134,56948.0,56947.0,0.10725655]
[1617500248338,0.53380134,56948.0,56947.0,0.10725655]
[1617500248538,0.53380134,56948.0,56944.0,3.6322]
[1617500249137,0.59559705,56948.0,56944.0,3.6322]
[1617500249539,0.59559705,56948.0,56944.0,3.63117001]
[1617500249540,0.81204947,56945.0,56944.0,3.63117001]
[1617500249739,0.91930602,56945.0,56944.0,3.63117001]
[1617500250242,0.98110675,56945.0,56944.0,3.63117001]
[1617500250642,0.53448969,56945.0,56944.0,3.63117001]
[1617500250841,0.42723314,56945.0,56944.0,3.63117001]
[1617500251042,0.87549052,56945.0,56944.0,3.63117001]
[1617500251441,0.36543241,56945.0,56944.0,3.63117001]
[1617500251642,0.36543241,56945.0,56944.0,3.73842656]
[1617500251944,0.10725655,56955.0,56944.0,3.73842656]
[1617500251945,0.36672677,56946.0,56944.0,3.73842656]
[1617500252844,0.36674233,56945.0,56944.0,3.73842656]
[1617500253242,0.42853386,56945.0,56944.0,3.73842656]
[1617500253642,0.36674233,56945.0,56944.0,3.73842656]
[1617500253841,0.47399888,56945.0,56944.0,3.73842656]
[1617500254042,0.36674233,56945.0,56944.0,3.73842656]
[1617500254442,0.36672383,56947.0,56944.0,3.73842656]
[1617500254641,0.36672383,56947.0,56944.0,3.85509656]
[1617500255444,0.36673959,56945.0,56944.0,3.85509656]
[1617500255641,0.47399614,56945.0,56944.0,3.73842656]
[1617500256444,0.53578806,56945.0,56944.0,3.63117001]
[1617500256843,0.98402912,56945.0,56919.0,1.0]
[1617500257044,3.7499,56940.0,56918.0,3.4352]
[1617500257244,3.86641,56940.0,56918.0,3.4352]
[1617500257846,0.36678297,56936.0,56928.0,0.10725655]
[1617500258646,0.36700129,56935.0,56928.0,0.10725655]
[1617500259249,0.5103316,56939.0,56928.0,0.10725655]
[1617500259250,0.36699828,56936.0,56928.0,0.10725655]
[1617500259648,0.36700305,56935.0,56928.0,0.10725655]
[1617500259849,0.10725655,56929.0,56928.0,0.10725655]
[1617500263956,0.4746921,56929.0,56928.0,0.10725655]
[1617500265158,0.10725655,56929.0,56928.0,0.10725655]
[1617500268360,0.10725655,56929.0,56928.0,3.46155655]
[1617500269565,0.4750102,56929.0,56928.0,3.46155655]
[1617500270460,0.36775365,56929.0,56928.0,3.46155655]
[1617500271162,0.36775365,56929.0,56928.0,0.10725655]
[1617500271365,0.36774296,56930.0,56928.0,0.10725655]
[1617500272964,0.36774296,56930.0,56929.0,3.1573]
[1617500273165,0.45018419,56932.0,56929.0,3.1573]
[1617500273567,0.36833525,56934.0,56929.0,4.1573]
[1617500273765,0.36833525,56934.0,56930.0,1.0]
[1617500273965,0.10725655,56949.0,56930.0,1.0]
[1617500273966,0.3683287,56938.0,56930.0,1.0]
[1617500274465,0.3683287,56938.0,56931.0,1.0]
[1617500274665,0.3683287,56938.0,56937.0,1.0]
[1617500274866,1.0,56968.0,56937.0,1.0]
[1617500274867,0.36832175,56941.0,56937.0,1.17021]
[1617500275267,0.0617949,56954.0,56937.0,0.17021]
[1617500275268,0.36832008,56939.0,56937.0,0.17021]
[1617500275666,0.36831856,56940.0,56938.0,1.0]
[1617500275866,0.36831856,56940.0,56939.0,0.10725655]
[1617500277270,0.36831856,56940.0,56939.0,1.10725655]
[1617500277871,0.36830428,56941.0,56939.0,1.10725655]
[1617500280272,0.36830656,56942.0,56939.0,1.10725655]
[1617500281177,0.36830631,56941.0,56939.0,1.10725655]
[1617500281774,0.36830631,56941.0,56939.0,0.10725655]
[1617500282776,0.06179177,56953.0,56939.0,0.10725655]
[1617500282777,0.36830444,56940.0,56939.0,0.10725655]
[1617500283778,0.36830444,56940.0,56939.0,1.10725655]
[1617500284177,0.36830765,56942.0,56939.0,1.10725655]
[1617500284577,0.36830555,56941.0,56939.0,1.10725655]
[1617500284979,0.36830555,56941.0,56939.0,0.10725655]
[1617500285179,0.82168372,56940.0,56939.0,0.10725655]
[1617500285379,0.82168372,56940.0,56939.0,3.53485655]
[1617500285780,0.82168372,56940.0,56939.0,4.53485655]
[1617500285981,0.36976794,56940.0,56939.0,4.53485655]
[1617500286482,0.36976794,56940.0,56939.0,4.89480003]
[1617500287282,0.36972791,56941.0,56939.0,4.89480003]
[1617500287481,0.36972791,56941.0,56939.0,5.02541003]
[1617500287681,0.36972791,56941.0,56940.0,1.0]
[1617500287883,0.36972648,56942.0,56940.0,1.42148358]
[1617500288081,0.45186685,56946.0,56941.0,0.4216528]
[1617500288281,0.45186685,56946.0,56943.0,1.0]
[1617500288683,0.45185207,56948.0,56943.0,1.5]
[1617500288884,0.45185207,56948.0,56945.0,1.0]
[1617500289083,0.36971306,56946.0,56945.0,0.3596432]
[1617500289482,0.36970772,56948.0,56943.0,1.93932553]
[1617500289681,0.36970772,56948.0,56947.0,2.7239]
[1617500289882,0.36970772,56948.0,56947.0,2.83115655]
[1617500290082,0.57504386,56967.0,56947.0,2.83115655]
[1617500290083,0.90358169,56981.0,56947.0,3.83115655]
[1617500290282,0.90358169,56981.0,56948.0,1.5]
[1617500290483,0.85350041,56955.0,56948.0,1.5]
[1617500290682,0.85350041,56955.0,56954.0,1.0]
[1617500290885,0.4845,56955.0,56954.0,1.15483]
[1617500291782,0.4845,56955.0,56954.0,1.26208655]
[1617500292383,0.85349665,56955.0,56954.0,1.26208655]
[1617500292583,0.85349665,56955.0,56954.0,0.26208655]
[1617500292783,0.4845,56955.0,56954.0,0.26208655]
[1617500292982,0.4845,56955.0,56954.0,1.26208655]
[1617500293784,0.4845,56955.0,56954.0,0.26208655]
[1617500294386,0.4845,56955.0,56954.0,1.26208655]
[1617500295585,0.4845,56955.0,56954.0,0.26208655]
[1617500295787,0.85348495,56955.0,56954.0,0.10725655]
[1617500296085,0.98744495,56955.0,56954.0,0.10725655]
[1617500296885,1.43821382,56955.0,56954.0,0.10725655]
[1617500298488,0.98744495,56955.0,56954.0,0.10725655]
[1617500299292,1.43820942,56955.0,56954.0,0.10725655]
[1617500299692,1.43820942,56955.0,56945.0,3.5774]
[1617500299893,0.2,56954.0,56947.0,0.10725655]
[1617500300092,1.7,56954.0,56947.0,0.10725655]
[1617500300292,1.45091928,56949.0,56947.0,0.10725655]
[1617500300492,0.45091928,56949.0,56947.0,0.10725655]
[1617500300692,4.7819,56952.0,56947.0,0.10725655]
[1617500300693,0.88166823,56948.0,56947.0,0.10725655]
[1617500300995,0.81988107,56948.0,56947.0,0.10725655]
[1617500301794,1.81988107,56948.0,56947.0,0.10725655]
[1617500301996,1.92713762,56948.0,56947.0,0.10725655]
[1617500302195,1.98892894,56948.0,56947.0,0.10725655]
[1617500302397,0.98892894,56948.0,56947.0,0.10725655]
[1617500303097,0.55818089,56948.0,56947.0,0.10725655]
[1617500304203,0.10725655,56948.0,56947.0,0.10725655]
[1617500304600,0.55819658,56948.0,56947.0,0.10725655]
[1617500305001,0.45093085,56949.0,56947.0,3.75205655]
[1617500305200,0.45093085,56949.0,56947.0,0.26478655]
[1617500305401,0.4845,56955.0,56947.0,0.26478655]
[1617500305402,0.45089642,56953.0,56947.0,0.26478655]
[1617500305602,0.45089642,56953.0,56948.0,1.0]
[1617500306002,0.4845,56955.0,56952.0,1.0]
[1617500306202,0.4845,56955.0,56949.0,1.0]
[1617500306601,0.4845,56955.0,56954.0,1.0]
[1617500307604,0.4845,56955.0,56950.0,0.35633802]
[1617500307805,0.4845,56955.0,56954.0,1.0]
[1617500308003,0.4845,56955.0,56954.0,1.10725655]
[1617500313215,0.4845,56955.0,56954.0,0.10725655]
[1617500313808,0.4845,56955.0,56954.0,1.10725655]
[1617500315211,0.4845,56955.0,56954.0,0.10725655]
[1617500316212,0.4845,56955.0,56954.0,1.10725655]
[1617500318414,0.4845,56955.0,56954.0,5.92005655]
[1617500318614,0.4845,56955.0,56954.0,1.10725655]
[1617500322721,0.4845,56955.0,56954.0,0.10725655]
[1617500323118,0.4845,56955.0,56954.0,1.10725655]
[1617500323319,0.4845,56955.0,56954.0,0.10725655]
[1617500324323,0.4845,56955.0,56954.0,1.10725655]
[1617500324522,0.4845,56955.0,56954.0,0.10725655]
[1617500325521,0.4845,56955.0,56954.0,1.24470655]
[1617500325724,0.45008789,56968.0,56954.0,1.24470655]
[1617500326122,0.45006221,56973.0,56967.0,0.10725655]
[1617500326324,0.45006221,56973.0,56967.0,0.25940655]
[1617500326725,0.45005517,56974.0,56967.0,0.25940655]
[1617500327125,0.45004782,56975.0,56967.0,0.25940655]
[1617500327526,0.45004513,56976.0,56967.0,0.25940655]
[1617500328125,0.45004513,56976.0,56975.0,0.10725655]
[1617500328527,0.45004656,56977.0,56975.0,0.10725655]
[1617500328927,0.45005019,56976.0,56975.0,0.10725655]
[1617500332332,0.96252362,56976.0,56975.0,1.10725655]
[1617500332731,0.45086648,56982.0,56975.0,1.10725655]
[1617500332932,0.45086648,56982.0,56975.0,5.00799655]
[1617500333133,0.45086648,56982.0,56975.0,0.21409655]
[1617500333333,0.462,56986.0,56975.0,0.50977427]
[1617500333532,0.462,56986.0,56981.0,1.0]
[1617500333732,0.4432,56986.0,56985.0,1.0]
[1617500334131,0.4432,56986.0,56985.0,6.65655655]
[1617500334332,0.10725655,57021.0,56985.0,6.65655655]
[1617500334333,0.45892495,57008.0,56985.0,1.60725655]
[1617500334735,0.01,57008.0,56985.0,2.90233044]
[1617500334937,0.01,57008.0,57004.0,1.0]
[1617500335134,0.01,57008.0,57004.0,1.15868]
[1617500335334,0.01,57008.0,57005.0,1.0]
[1617500335535,0.01,57008.0,57004.0,0.15868]
[1617500335734,0.01,57008.0,57007.0,1.0]
[1617500336132,0.01,57008.0,57007.0,0.10725655]
[1617500336535,0.01,57008.0,57007.0,1.10725655]
[1617500339441,0.01,57008.0,57007.0,0.10725655]
[1617500339838,0.44886529,57019.0,57007.0,0.10725655]
[1617500340038,0.44886529,57019.0,57007.0,1.10725655]
[1617500340239,0.44886529,57019.0,57018.0,0.10725655]
[1617500340439,0.44886529,57019.0,57018.0,0.23427655]
[1617500341441,0.44896699,57020.0,57018.0,0.23427655]
[1617500341842,0.44896658,57019.0,57018.0,0.23427655]
[1617500342243,0.44896343,57020.0,57018.0,0.23427655]
[1617500342643,0.44896765,57019.0,57018.0,0.23427655]
[1617500343444,0.44896765,57019.0,57018.0,0.10725655]
[1617500343845,1.64896765,57019.0,57018.0,0.10725655]
[1617500344046,0.64896765,57019.0,56993.0,0.29472246]
[1617500344246,3.14896765,57019.0,57006.0,0.10725655]
[1617500344446,2.65919909,57019.0,57006.0,0.10725655]
[1617500344646,0.44904162,57007.0,57006.0,0.10725655]
[1617500344845,0.55978162,57007.0,57006.0,0.10725655]
[1617500345446,0.55978162,57007.0,57006.0,3.47535655]
[1617500345646,0.11074,57007.0,57006.0,3.47535655]
[1617500345846,0.44787425,57015.0,57006.0,3.47535655]
[1617500346046,0.44785803,57019.0,57006.0,4.59051655]
[1617500346251,0.44785803,57019.0,57018.0,0.10725655]
[1617500346449,0.44783735,57022.0,57018.0,0.23086655]
[1617500347051,0.4478362,57020.0,57018.0,0.23086655]
[1617500347650,0.4478362,57020.0,57018.0,0.10725655]
[1617500347851,0.44782455,57019.0,57018.0,0.10725655]
[1617500348352,0.10725655,57019.0,57018.0,0.10725655]
[1617500351757,0.44758613,57021.0,57018.0,0.10725655]
[1617500351957,0.44758613,57021.0,57018.0,0.25518655]
[1617500352157,0.2,57043.0,57018.0,0.25518655]
[1617500352158,0.44757924,57023.0,57018.0,0.25518655]
[1617500352757,0.44757924,57023.0,57019.0,2.6749]
[1617500353158,0.44757359,57024.0,57019.0,2.6749]
[1617500354159,0.44756591,57025.0,57019.0,2.6749]
[1617500354357,0.44756591,57025.0,57024.0,0.10725655]
[1617500354957,1.44756591,57025.0,57024.0,0.10725655]
[1617500355158,1.44756591,57025.0,57024.0,0.10622784]
[1617500355859,1.95618924,57025.0,57024.0,0.10622784]
[1617500356258,2.06344579,57025.0,57019.0,2.6749]
[1617500356660,1.0,57023.0,57019.0,2.6749]
[1617500356858,0.44760836,57020.0,57019.0,2.6749]
[1617500357058,0.64760836,57020.0,57019.0,2.6749]
[1617500357759,0.44760836,57020.0,57019.0,2.6749]
[1617500359158,0.44720523,57021.0,57019.0,2.6749]
[1617500359361,0.44720523,57021.0,57019.0,2.82529]
[1617500359559,0.44720345,57023.0,57019.0,2.82529]
[1617500359959,0.447187,57025.0,57019.0,2.82529]
[1617500360359,0.50899229,57028.0,57024.0,0.10725655]
[1617500360961,0.44792695,57025.0,57024.0,0.10725655]
[1617500363663,0.64792695,57025.0,57019.0,2.6749]
[1617500363863,1.15694533,57025.0,57019.0,2.6749]
[1617500364069,1.5,57024.0,56997.0,1.0]
[1617500364264,2.6225,57019.0,57002.0,0.10725655]
[1617500364464,1.5,57018.0,57002.0,0.10725655]
[1617500364666,0.44800247,57013.0,57002.0,0.10725655]
[1617500364864,2.07100247,57013.0,57002.0,0.10725655]
[1617500365266,0.44800922,57011.0,57002.0,0.10725655]
[1617500366068,0.5090875,57017.0,57002.0,0.10725655]
[1617500366069,0.44799684,57014.0,57002.0,0.10725655]
[1617500366268,0.44799684,57014.0,57013.0,0.10725655]
[1617500366668,1.64799684,57014.0,57013.0,0.10725655]
[1617500367469,3.40358992,57014.0,56989.0,0.4609]
[1617500367669,3.51222992,57014.0,56989.0,0.4609]
[1617500367869,1.0,57001.0,56989.0,0.4609]
[1617500368070,1.14401,57001.0,56989.0,0.4609]
[1617500368274,0.14401,57001.0,56999.0,0.10725655]
[1617500368671,0.14401,57001.0,57000.0,2.8615]
[1617500369073,0.44832029,57010.0,57000.0,2.8615]
[1617500369271,0.4483135,57014.0,57000.0,2.8615]
[1617500369672,0.44831326,57015.0,57000.0,2.8615]
[1617500370073,0.70943299,57021.0,57000.0,2.8615]
[1617500370074,0.44831157,57014.0,57000.0,2.8615]
[1617500370474,0.44831157,57014.0,57013.0,0.10725655]
[1617500370674,0.44831157,57014.0,57013.0,0.21445655]
[1617500370874,1.50943107,57020.0,57013.0,0.21445655]
[1617500370875,0.44830694,57015.0,57013.0,0.21445655]
[1617500371476,0.44894437,57014.0,57013.0,0.21445655]
[1617500371677,0.44894437,57014.0,57013.0,3.10955655]
[1617500371876,0.44893279,57016.0,57013.0,0.21445655]
[1617500372276,0.44892064,57018.0,57013.0,0.10725655]
[1617500372478,0.10725655,57014.0,57013.0,0.10725655]
[1617500372679,3.05619925,57014.0,57000.0,3.0159]
[1617500372877,2.05619925,57014.0,57000.0,3.0159]
[1617500373084,0.2,57013.0,57000.0,3.0159]
[1617500373277,0.44897232,57010.0,57000.0,3.0159]
[1617500373477,1.0,57008.0,57000.0,3.0159]
[1617500373677,2.05314232,57010.0,56983.0,0.29502724]
[1617500373678,1.0,57003.0,56983.0,0.29502724]
[1617500374077,1.0,57001.0,56979.0,0.29525233]
[1617500374277,1.5,57000.0,56979.0,0.29525233]
[1617500374478,0.10725655,56980.0,56971.0,0.25547457]
[1617500374678,2.75165655,56980.0,56971.0,0.25547457]
[1617500374877,1.0,56972.0,56971.0,0.25547457]
[1617500375079,1.0,56972.0,56966.0,0.43349114]
[1617500375080,0.25165655,56980.0,56952.0,0.49314768]
[1617500375277,1.25165655,56980.0,56952.0,1.49314768]
[1617500375478,1.25165655,56980.0,56952.0,1.0]
[1617500375878,1.25165655,56980.0,56947.0,3.0184]
[1617500375879,0.25165655,56980.0,56953.0,1.0]
[1617500376077,0.25165655,56980.0,56948.0,0.49354029]
[1617500376078,0.25165655,56980.0,56961.0,1.0]
[1617500376479,0.25165655,56980.0,56979.0,0.10725655]
[1617500377282,0.33399872,56990.0,56979.0,3.23345655]
[1617500377484,0.33399872,56990.0,56979.0,0.10725655]
[1617500377684,0.33399872,56990.0,56989.0,3.3645]
[1617500377883,0.33399872,56990.0,56989.0,3.49615]
[1617500378083,0.3341363,56998.0,56989.0,3.49615]
[1617500378483,0.33411375,57002.0,56997.0,0.04551784]
[1617500378884,0.51065316,57003.0,56997.0,0.04551784]
[1617500379685,1.0,57009.0,56997.0,0.04551784]
[1617500379686,0.51063424,57005.0,56997.0,0.04551784]
[1617500380083,0.51062701,57004.0,56997.0,0.04551784]
[1617500380484,0.10725655,56998.0,56997.0,0.04551784]
[1617500380684,0.10725655,56998.0,56989.0,3.49615]
[1617500380685,0.10725655,56998.0,56989.0,3.3645]
[1617500382487,0.10725655,56998.0,56997.0,0.10725655]
[1617500382688,0.10725655,56998.0,56997.0,0.24746655]
[1617500383090,0.62023213,56998.0,56997.0,0.24746655]
[1617500385691,0.62023213,56998.0,56997.0,0.10725655]
[1617500386391,0.62023213,56998.0,56989.0,3.3645]
[1617500386993,0.5129915,56993.0,56989.0,3.3645]
[1617500387396,0.51299289,56992.0,56989.0,3.3645]
[1617500388195,0.51302084,56990.0,56989.0,3.3645]
[1617500388395,0.62027739,56990.0,56989.0,3.3645]
[1617500390397,0.10725655,56990.0,56989.0,3.3645]
[1617500390797,0.62028171,56990.0,56989.0,3.3645]
[1617500391197,0.62028171,56990.0,56982.0,0.10725655]
[1617500392002,0.51303187,56989.0,56982.0,0.10725655]
[1617500392202,0.51303187,56989.0,56983.0,2.6582]
[1617500392401,0.62027518,56990.0,56988.0,0.10725655]
[1617500393204,0.5130809,56989.0,56988.0,0.10725655]
[1617500393801,0.10725655,56990.0,56988.0,0.10725655]
[1617500394402,0.51307299,56991.0,56988.0,0.10725655]
[1617500394602,0.51307299,56991.0,56990.0,3.6938]
[1617500394803,0.51305338,56993.0,56990.0,3.6938]
[1617500395202,0.45151331,56991.0,56990.0,3.6938]
[1617500395604,0.96458721,56991.0,56990.0,3.6938]
[1617500396204,0.45151331,56991.0,56990.0,3.6938]
[1617500397505,0.96459096,56991.0,56990.0,3.6938]
[1617500397704,0.45151331,56991.0,56990.0,3.6938]
[1617500397910,0.964601,56991.0,56990.0,3.6938]
[1617500398506,1.07185755,56991.0,56990.0,3.6938]
[1617500400507,1.07185755,56991.0,56990.0,0.16879]
[1617500401709,1.07185755,56991.0,56988.0,0.10725655]
[1617500402110,1.07185755,56991.0,56973.0,3.59975827]
[1617500402311,0.96458572,56989.0,56973.0,3.1669]
[1617500402509,0.10725655,56974.0,56973.0,3.1669]
[1617500402709,0.24509655,56974.0,56969.0,0.43308288]
[1617500403311,0.24509655,56974.0,56968.0,0.4509]
[1617500403711,0.45158821,56973.0,56968.0,0.4509]
[1617500404510,0.45158821,56973.0,56968.0,0.55815655]
[1617500404710,0.45158821,56973.0,56969.0,0.0524]
[1617500404910,0.4515967,56972.0,56968.0,0.55815655]
[1617500405310,0.45156122,56973.0,56968.0,0.4509]
[1617500405711,0.45156886,56971.0,56968.0,0.4509]
[1617500406512,0.45158705,56970.0,56968.0,0.4509]
[1617500407913,0.24509655,56974.0,56968.0,0.4509]
[1617500407914,0.45158138,56971.0,56968.0,0.4509]
[1617500408321,0.10725655,56974.0,56968.0,0.4509]
[1617500408322,0.55883245,56974.0,56968.0,0.4509]
[1617500408521,0.55883245,56974.0,56973.0,3.4522]
[1617500408932,0.10725655,56974.0,56973.0,3.4522]
[1617500409318,0.55884765,56974.0,56973.0,3.4522]
[1617500409717,0.10725655,56974.0,56973.0,3.4522]
[1617500410017,1.07200876,56974.0,56973.0,3.4522]
[1617500410418,0.55884924,56974.0,56973.0,3.4522]
[1617500412320,0.55884924,56974.0,56968.0,0.4509]
[1617500412520,0.70232924,56974.0,56968.0,0.4509]
[1617500413020,0.45056054,56973.0,56968.0,0.4509]
[1617500413420,0.45056054,56973.0,56949.0,2.5615]
[1617500413421,0.45056168,56972.0,56952.0,0.43228239]
[1617500413621,1.0,56971.0,56952.0,0.43228239]
[1617500414422,0.45056168,56972.0,56952.0,0.43228239]
[1617500414622,0.45056168,56972.0,56959.0,0.10725655]
[1617500415323,0.45055643,56973.0,56959.0,0.10725655]
[1617500415723,1.59403575,56974.0,56970.0,3.7578]
[1617500415923,1.0,56972.0,56970.0,3.7578]
[1617500416726,0.10725655,56971.0,56970.0,3.7578]
[1617500418433,1.10725655,56971.0,56970.0,3.7578]
[1617500419228,1.75811494,56971.0,56970.0,3.7578]
[1617500419631,1.55811494,56971.0,56970.0,3.7578]
[1617500420930,3.05811494,56971.0,56970.0,3.7578]
[1617500421530,3.36589841,56971.0,56970.0,3.7578]
[1617500421930,2.60725655,56971.0,56970.0,3.7578]
[1617500422430,3.0577378,56971.0,56970.0,3.7578]
[1617500423030,2.60725655,56971.0,56970.0,3.7578]
[1617500426434,3.05773978,56971.0,56970.0,3.7578]
[1617500431348,1.55773978,56971.0,56970.0,3.7578]
[1617500432639,1.60973978,56971.0,56970.0,3.7578]
[1617500432841,1.55773978,56971.0,56970.0,3.7578]
[1617500434042,0.55773978,56971.0,56970.0,3.7578]
[1617500434647,0.10725655,56971.0,56970.0,3.7578]
[1617500437449,0.5576925,56971.0,56970.0,3.7578]
[1617500438548,0.5576925,56971.0,56970.0,3.86727]
[1617500440454,0.10725655,56971.0,56970.0,3.86727]
[1617500440955,0.10725655,56971.0,56970.0,3.7578]
[1617500441356,0.55780925,56971.0,56970.0,3.7578]
[1617500441955,0.55780925,56971.0,56966.0,0.10725655]
[1617500442157,1.66340925,56971.0,56966.0,0.10725655]
[1617500442357,0.45056106,56969.0,56966.0,0.10725655]
[1617500443559,1.45056106,56969.0,56966.0,0.10725655]
[1617500444960,0.45056106,56969.0,56966.0,0.10725655]
[1617500445559,0.41831459,56971.0,56966.0,0.10725655]
[1617500445560,0.55788048,56971.0,56968.0,3.5379]
[1617500446161,0.45062147,56970.0,56968.0,3.5379]
[1617500447060,0.10725655,56971.0,56968.0,3.5379]
[1617500447061,0.55787929,56971.0,56968.0,3.5379]
[1617500448263,0.10725655,56971.0,56968.0,3.5379]
[1617500449161,0.10725655,56971.0,56966.0,0.10725655]
[1617500450067,0.5581768,56971.0,56966.0,0.10725655]
[1617500450464,1.5581768,56971.0,56966.0,0.10725655]
[1617500451465,1.5,56970.0,56966.0,0.10725655]
[1617500451665,1.5,56970.0,56953.0,0.42938206]
[1617500451865,1.0,56967.0,56953.0,0.42938206]
[1617500452067,3.1184,56962.0,56950.0,0.43080339]
[1617500452266,1.0,56960.0,56950.0,0.43080339]
[1617500452466,1.0,56960.0,56948.0,0.43118945]
[1617500452668,3.1184,56962.0,56948.0,0.43118945]
[1617500452866,3.1184,56962.0,56956.0,0.10725655]
[1617500453267,0.45094734,56965.0,56956.0,0.10725655]
[1617500453466,1.45094734,56965.0,56956.0,0.10725655]
[1617500454067,1.45094734,56965.0,56962.0,3.107]
[1617500454068,0.45095602,56964.0,56962.0,3.107]
[1617500454868,0.10725655,56963.0,56962.0,3.107]
[1617500455169,1.10725655,56963.0,56962.0,3.107]
[1617500456467,0.10725655,56963.0,56962.0,3.107]
[1617500456666,1.5582097,56963.0,56962.0,3.107]
[1617500457068,1.10725655,56963.0,56962.0,3.107]
[1617500459270,0.10725655,56963.0,56962.0,3.107]
[1617500459473,1.10725655,56963.0,56962.0,3.107]